bitfinex/quotes_SOLUSD_20240625
["timestamp","ask_amount","ask_price","bid_price","bid_amount"]
[1719281208753,100.0,132.84,132.83,6.7755]
[1719281208955,100.0,132.84,132.81,16.9406]
[1719281209128,100.0,132.84,132.81,23.7171]
[1719281209330,100.0,132.84,132.81,16.9406]
[1719281209533,100.0,132.84,132.82,6.7759]
[1719281209740,100.0,132.86,132.81,16.9406]
[1719281209944,100.0,132.86,132.82,6.7759]
[1719281210655,100.0,132.86,132.83,6.7755]
[1719281211157,100.0,132.86,132.82,6.7759]
[1719281211358,100.0,132.84,132.81,23.7171]
[1719281211742,100.0,132.84,132.79,6.7771]
[1719281211743,100.0,132.82,132.79,6.7771]
[1719281212139,100.0,132.82,132.8,6.7767]
[1719281212337,100.0,132.82,132.79,6.7774]
[1719281212754,100.0,132.82,132.78,23.7226]
[1719281213350,100.0,132.82,132.79,6.7775]
[1719281215635,100.0,132.82,132.81,6.7765]
[1719281215963,100.0,132.82,132.79,6.7775]
[1719281216148,100.0,132.82,132.78,16.9446]
[1719281216348,100.0,132.82,132.79,6.7771]
[1719281216745,100.0,132.82,132.78,16.9446]
[1719281216942,100.0,132.82,132.78,23.7226]
[1719281217552,100.0,132.8,132.75,16.9486]
[1719281217956,100.0,132.77,132.75,16.9486]
[1719281218146,100.0,132.77,132.72,33.6102]
[1719281218341,100.0,132.77,132.72,40.3912]
[1719281218560,100.0,132.75,132.72,16.9522]
[1719281218859,100.0,132.75,132.72,23.7329]
[1719281219965,100.0,132.75,132.74,6.7801]
[1719281220150,100.0,132.75,132.73,6.7805]
[1719281221564,100.0,132.77,132.74,6.78]
[1719281221761,116.6172,132.79,132.75,6.7794]
[1719281221961,100.0,132.79,132.75,6.7794]
[1719281222471,100.0,132.77,132.74,23.7297]
[1719281223367,100.0,132.77,132.74,16.9497]
[1719281223751,100.0,132.77,132.74,23.7298]
[1719281224571,100.0,132.77,132.75,6.7793]
[1719281224764,100.0,132.79,132.74,23.7297]
[1719281225769,100.0,132.75,132.74,16.9497]
[1719281226149,100.0,132.77,132.74,23.7298]
[1719281229468,100.0,132.79,132.75,6.7795]
[1719281229771,100.0,132.77,132.75,6.7795]
[1719281229969,100.0,132.77,132.74,16.9497]
[1719281229970,100.0,132.77,132.74,23.7297]
[1719281230769,100.0,132.75,132.7,16.9543]
[1719281231067,100.0,132.75,132.71,6.7813]
[1719281231769,100.0,132.75,132.72,6.781]
[1719281231968,100.0,132.75,132.73,6.7806]
[1719281232165,100.0,132.75,132.72,23.7326]
[1719281232675,100.0,132.75,132.73,6.7806]
[1719281233153,100.0,132.79,132.74,6.7797]
[1719281233358,100.0,132.79,132.74,16.9499]
[1719281233661,100.0,132.79,132.75,6.7793]
[1719281234561,100.0,132.79,132.74,23.73]
[1719281234867,106.7777,132.79,132.74,23.73]
[1719281235593,100.0,132.79,132.75,6.7795]
[1719281236186,123.33131096,132.82,132.76,16.947]
[1719281236484,100.0,132.85,132.8,6.7769]
[1719281236857,106.7745,132.85,132.79,6.7774]
[1719281237188,100.0,132.83,132.77,6.0676]
[1719281237353,100.0,132.83,132.75,32.351]
[1719281237354,100.0,132.81,132.76,6.779]
[1719281240268,100.0,132.81,132.77,6.7785]
[1719281241194,100.0,132.81,132.78,6.7781]
[1719281241685,100.0,132.81,132.77,6.7785]
[1719281242387,100.0,132.79,132.75,23.7277]
[1719281242572,100.0,132.79,132.72,33.312]
[1719281242771,100.0,132.76,132.73,6.7806]
[1719281243474,100.0,132.76,132.74,6.7801]
[1719281243876,100.0,132.76,132.75,6.7796]
[1719281244079,100.0,132.79,132.74,23.7298]
[1719281244275,100.0,132.77,132.75,6.7796]
[1719281244469,100.0,132.77,132.74,23.7301]
[1719281245187,100.0,132.77,132.73,6.7805]
[1719281245386,100.0,132.77,132.74,6.78]
[1719281245680,100.0,132.77,132.69,390.4]
[1719281245681,100.0,132.75,132.69,390.4]
[1719281245882,100.0,132.75,132.72,6.7811]
[1719281246694,100.0,132.75,132.71,6.7815]
[1719281246989,100.0,132.75,132.72,6.7808]
[1719281247194,100.0,132.75,132.73,6.7805]
[1719281247566,100.0,132.75,132.72,23.7336]
[1719281248897,100.0,132.75,132.72,16.9525]
[1719281249366,100.0,132.73,132.71,6.7816]
[1719281249765,100.0,132.75,132.72,6.7811]
[1719281250392,100.0,132.75,132.71,23.7355]
[1719281250886,100.0,132.75,132.72,6.781]
[1719281251685,100.0,132.75,132.71,23.7354]
[1719281251888,100.0,132.75,132.72,6.7811]
[1719281252389,100.0,132.75,132.71,23.7355]
[1719281252585,100.0,132.75,132.73,6.7806]
[1719281252792,100.0,132.77,132.73,16.9506]
[1719281253299,100.0,132.77,132.73,23.7311]
[1719281253995,116.2593,132.8,132.75,6.7793]
[1719281254603,116.2593,132.8,132.76,6.779]
[1719281254808,123.0364,132.8,132.75,23.7282]
[1719281255106,116.2593,132.8,132.75,23.7282]
[1719281255699,123.0366,132.8,132.75,23.7282]
[1719281255899,123.0366,132.8,132.75,16.9487]
[1719281256084,100.0,132.78,132.75,16.9487]
[1719281256803,123.0366,132.8,132.75,23.7283]
[1719281257008,116.2593,132.8,132.75,23.7283]
[1719281257798,100.0,132.78,132.75,16.9487]
[1719281257996,100.0,132.78,132.73,6.7805]
[1719281259298,100.0,132.78,132.74,6.7801]
[1719281260182,100.0,132.76,132.73,6.7805]
[1719281263022,100.0,132.76,132.74,16.9501]
[1719281263202,116.2593,132.8,132.76,6.779]
[1719281263520,100.0,132.8,132.76,6.779]
[1719281264203,106.7771,132.8,132.75,6.7795]
[1719281264411,100.0,132.78,132.75,6.7795]
[1719281265319,106.7771,132.8,132.75,6.7795]
[1719281266227,100.0,132.78,132.75,6.7795]
[1719281266398,106.7771,132.8,132.75,6.7795]
[1719281267620,100.0,132.78,132.75,6.7795]
[1719281268128,100.0,132.81,132.78,16.9443]
[1719281268343,100.0,132.83,132.81,6.7765]
[1719281268830,100.0,132.83,132.8,23.7187]
[1719281269728,100.0,132.85,132.81,6.7764]
[1719281269915,100.0,132.85,132.82,6.776]
[1719281270303,100.0,132.87,132.82,6.776]
[1719281270615,100.0,132.85,132.82,6.776]
[1719281270800,100.0,132.85,132.81,6.7764]
[1719281271216,100.0,132.85,132.82,6.7758]
[1719281271414,100.0,132.85,132.81,6.7765]
[1719281273530,100.0,132.85,132.82,6.776]
[1719281274635,100.0,132.85,132.81,6.7764]
[1719281275720,106.7737,132.87,132.81,6.7764]
[1719281275926,106.7737,132.87,132.82,6.7759]
[1719281276398,106.7737,132.87,132.8,38.4151]
[1719281276399,100.0,132.84,132.8,38.4151]
[1719281276604,100.0,132.84,132.77,28.59]
[1719281276605,100.0,132.84,132.79,6.7774]
[1719281276917,100.0,132.82,132.78,6.7776]
[1719281277121,100.0,132.82,132.79,6.7775]
[1719281278121,100.0,132.84,132.8,6.7769]
[1719281278327,100.0,132.84,132.8,6.777]
[1719281278702,100.0,132.82,132.79,23.7205]
[1719281279918,100.0,132.84,132.8,6.7769]
[1719281280444,106.7741,132.86,132.81,6.7765]
[1719281281415,7.87300911,132.87,132.85,6.7745]
[1719281281623,129.60930158,132.9,132.84,6.7749]
[1719281281827,100.0,132.86,132.83,23.7138]
[1719281282024,100.0,132.86,132.79,6.4028]
[1719281282025,100.0,132.86,132.8,16.9421]
[1719281282225,100.0,132.88,132.85,6.7744]
[1719281282426,100.0,132.88,132.82,32.1136]
[1719281283022,100.0,132.88,132.85,6.7745]
[1719281283434,100.0,132.88,132.84,6.7749]
[1719281283806,100.0,132.86,132.82,32.1136]
[1719281285435,100.0,132.86,132.82,38.8895]
[1719281285630,100.0,132.86,132.83,6.7754]
[1719281285933,100.0,132.88,132.82,32.1136]
[1719281286229,100.0,132.88,132.84,6.7749]
[1719281289931,100.0,132.88,132.82,15.1741]
[1719281290133,100.0,132.9,132.86,16.9341]
[1719281290334,6.7698,132.95,132.89,6.7724]
[1719281290632,100.0,132.94,132.89,6.7724]
[1719281290819,100.0,132.94,132.88,16.9318]
[1719281291207,107.86805012,132.96,132.88,16.9318]
[1719281291411,6.77,132.94,132.89,6.7724]
[1719281291630,106.77,132.94,132.88,23.7046]
[1719281291820,100.0,132.91,132.85,22.9369]
[1719281292025,100.0,132.91,132.87,6.7734]
[1719281292210,100.0,132.91,132.85,22.9369]
[1719281292426,100.0,132.91,132.88,6.773]
[1719281292614,100.0,132.89,132.85,22.9369]
[1719281292830,100.0,132.89,132.85,29.7114]
[1719281293936,100.0,132.89,132.87,16.9332]
[1719281294343,100.0,132.89,132.85,6.0011]
[1719281294635,100.0,132.87,132.84,23.7115]
[1719281295145,100.0,132.87,132.85,6.7744]
[1719281295660,100.0,132.87,132.84,16.937]
[1719281295842,100.0,132.87,132.82,28.4079]
[1719281296015,121.341,132.91,132.83,6.7753]
[1719281296016,100.0,132.85,132.83,6.7753]
[1719281296214,100.0,132.87,132.83,6.7753]
[1719281297033,100.0,132.88,132.83,6.7753]
[1719281297240,100.0,132.88,132.83,16.9384]
[1719281297438,100.0,132.88,132.84,6.7749]
[1719281297640,100.0,132.88,132.83,16.9384]
[1719281297815,100.0,132.88,132.84,6.7749]
[1719281298023,100.0,132.88,132.83,23.7138]
[1719281299235,100.0,132.88,132.84,6.7749]
[1719281299544,100.0,132.88,132.83,16.9384]
[1719281299545,106.773,132.88,132.83,23.7139]
[1719281300341,106.773,132.88,132.83,16.9384]
[1719281300648,100.0,132.88,132.83,23.7138]
[1719281301248,100.0,132.86,132.83,23.7138]
[1719281302361,106.7721,132.9,132.83,16.9384]
[1719281302658,100.0,132.9,132.85,6.774]
[1719281302950,100.0,132.92,132.82,21.632]
[1719281303141,100.0,132.92,132.87,16.9334]
[1719281304337,100.0,132.92,132.87,23.7064]
[1719281305732,106.7711,132.92,132.87,23.7064]
[1719281305937,100.0,132.9,132.87,16.9334]
[1719281306657,100.0,132.9,132.87,23.7069]
[1719281306867,100.0,132.9,132.88,6.7728]
[1719281307163,100.0,132.92,132.88,6.7728]
[1719281307661,106.771,132.92,132.87,23.7068]
[1719281308455,100.0,132.89,132.87,23.7068]
[1719281310156,109.15206487,132.93,132.88,6.7728]
[1719281311263,115.92266487,132.93,132.88,6.7728]
[1719281312266,113.99350158,132.97,132.88,15.2001]
[1719281312466,107.49640158,132.97,132.92,6.7709]
[1719281312651,100.0,132.97,132.92,6.7709]
[1719281312852,106.7685,132.97,132.92,6.7709]
[1719281313248,100.0,132.97,132.92,6.7709]
[1719281313452,106.7685,132.97,132.92,6.7709]
[1719281314154,100.0,132.97,132.92,6.7709]
[1719281314357,6.768,132.98,132.93,6.7704]
[1719281314847,100.0,132.97,132.92,6.7709]
[1719281315246,6.7675,132.99,132.91,16.9276]
[1719281315460,106.7675,132.99,132.91,16.9276]
[1719281315665,106.7675,132.99,132.93,6.7703]
[1719281316759,106.7675,132.99,132.94,6.7699]
[1719281317156,100.0,132.99,132.94,6.7697]
[1719281317677,106.7677,132.99,132.93,23.6959]
[1719281319080,100.0,132.97,132.93,16.9256]
[1719281319375,106.7684,132.97,132.93,16.9256]
[1719281319555,100.0,132.97,132.93,16.9256]
[1719281320359,100.0,132.97,132.93,23.696]
[1719281321651,105.97621549,133.01,132.9,16.9299]
[1719281321652,100.0,132.95,132.9,16.9299]
[1719281322173,100.0,132.95,132.91,6.7714]
[1719281322974,100.0,132.95,132.9,16.9299]
[1719281322975,100.0,132.95,132.92,6.7709]
[1719281324375,100.0,132.93,132.92,6.7709]
[1719281324754,100.0,132.95,132.93,6.7703]
[1719281325076,100.0,132.95,132.92,23.698]
[1719281325700,100.0,132.93,132.89,16.9305]
[1719281326083,100.0,132.91,132.89,23.7025]
[1719281326389,100.0,132.91,132.9,6.772]
[1719281328556,100.0,132.91,132.89,16.9305]
[1719281329159,100.0,132.91,132.89,26.4605]
[1719281329570,100.0,132.91,132.89,23.7029]
[1719281330081,100.0,132.91,132.9,6.772]
[1719281330459,100.0,132.93,132.9,6.772]
[1719281330860,100.0,132.93,132.89,33.2328]
[1719281331054,100.0,132.93,132.88,9.53]
[1719281331055,100.0,132.91,132.88,9.53]
[1719281331480,100.0,132.91,132.89,9.53]
[1719281331652,100.0,132.93,132.89,16.3024]
[1719281332175,100.0,132.95,132.92,9.53]
[1719281332867,106.7677,132.99,132.93,16.3003]
[1719281333086,16.2979,132.98,132.93,16.3003]
[1719281333379,100.0,132.97,132.93,16.3003]
[1719281333968,100.0,132.97,132.94,9.53]
[1719281334678,100.0,132.97,132.92,23.6978]
[1719281334853,106.7684,132.97,132.94,9.53]
[1719281335391,100.0,132.97,132.94,9.53]
[1719281336069,100.0,132.97,132.94,16.2998]
[1719281336270,109.53,132.99,132.95,9.53]
[1719281336478,116.2975,132.99,132.95,9.53]
[1719281336670,100.0,132.95,132.92,23.6974]
[1719281336868,100.0,132.95,132.92,9.53]
[1719281337465,100.0,132.95,132.91,23.1034]
[1719281337686,100.0,132.95,132.92,9.53]
[1719281339685,100.0,132.92,132.89,23.7027]
[1719281339995,100.0,132.92,132.89,9.53]
[1719281340183,100.0,132.92,132.86,16.9345]
[1719281340184,100.0,132.9,132.86,16.9345]
[1719281340481,100.0,132.9,132.87,6.7734]
[1719281341188,100.0,132.9,132.86,23.7083]
[1719281341390,100.0,132.88,132.86,16.9345]
[1719281341881,100.0,132.88,132.85,6.7744]
[1719281341882,100.0,132.86,132.85,6.7745]
[1719281342260,100.0,132.86,132.84,6.7749]
[1719281342466,100.0,132.86,132.83,16.9382]
[1719281342691,100.0,132.86,132.84,6.7749]
[1719281342873,100.0,132.86,132.83,16.9382]
[1719281343073,100.0,132.86,132.83,23.7135]
[1719281343781,100.0,132.84,132.8,39.4052]
[1719281344073,100.0,132.84,132.81,6.7764]
[1719281344274,100.0,132.84,132.8,23.7191]
[1719281344488,100.0,132.84,132.8,16.9422]
[1719281344983,100.0,132.82,132.77,16.2096]
[1719281345486,116.5504,132.88,132.83,6.7753]
[1719281346568,123.3235,132.88,132.82,23.7155]
[1719281346767,100.0,132.86,132.82,23.7155]
[1719281346992,116.5504,132.88,132.83,6.7754]
[1719281347873,123.3234,132.88,132.83,6.7754]
[1719281348075,116.5504,132.88,132.83,6.7754]
[1719281348785,100.0,132.87,132.82,16.9396]
[1719281348986,100.0,132.85,132.82,16.9396]
[1719281349289,100.0,132.89,132.82,16.9396]
[1719281349478,100.0,132.89,132.85,6.7745]
[1719281349886,100.0,132.89,132.84,6.7749]
[1719281352089,121.94290808,132.93,132.89,6.7724]
[1719281352490,106.05710808,132.93,132.89,6.7724]
[1719281352682,106.05710808,132.93,132.88,23.7045]
[1719281353476,106.05710808,132.93,132.88,16.9316]
[1719281353477,100.0,132.91,132.88,16.9316]
[1719281354091,100.0,132.91,132.88,23.7046]
[1719281354305,100.0,132.91,132.86,6.7736]
[1719281354489,100.0,132.91,132.87,6.7734]
[1719281355393,106.05710808,132.93,132.88,6.7729]
[1719281355591,109.15206487,132.95,132.87,16.9331]
[1719281355973,109.15206487,132.95,132.91,6.7714]
[1719281356402,106.0121029,132.97,132.91,16.9282]
[1719281356610,106.0121029,132.97,132.93,6.7704]
[1719281356767,106.0121029,132.97,132.91,16.9282]
[1719281356973,100.0,132.95,132.91,16.9282]
[1719281357284,106.7697,132.95,132.9,15.4796]
[1719281357483,100.0,132.93,132.88,23.7043]
[1719281357686,100.0,132.91,132.88,23.7043]
[1719281357995,100.0,132.91,132.88,16.9318]
[1719281358192,6.7711,132.92,132.87,21.8098]
[1719281358385,100.0,132.93,132.87,31.9697]
[1719281358577,100.0,132.93,132.89,6.7723]
[1719281359473,100.0,132.93,132.88,6.7728]
[1719281359881,100.0,132.91,132.88,6.7728]
[1719281361099,100.0,132.89,132.84,6.0615]
[1719281361399,100.0,132.89,132.86,6.7739]
[1719281361775,100.0,132.91,132.84,22.9989]
[1719281362384,100.0,132.89,132.85,6.7744]
[1719281362800,100.0,132.89,132.86,6.774]
[1719281363701,100.0,132.91,132.87,6.7734]
[1719281363900,100.0,132.93,132.86,33.8697]
[1719281364307,100.0,132.93,132.9,6.7715]
[1719281364485,100.0,132.93,132.86,33.8697]
[1719281364686,100.0,132.93,132.85,28.59]
[1719281364687,100.0,132.91,132.88,6.7728]
[1719281365587,100.0,132.91,132.87,23.7067]
[1719281365898,100.0,132.91,132.88,6.7728]
[1719281366275,100.0,132.91,132.87,16.9334]
[1719281366479,100.0,132.89,132.87,16.9334]
[1719281367020,100.0,132.89,132.87,23.7069]
[1719281368284,100.0,132.89,132.88,6.773]
[1719281368495,100.0,132.91,132.88,6.773]
[1719281371317,100.0,132.91,132.89,6.7723]
[1719281371486,100.0,132.93,132.89,6.7723]
[1719281371906,100.0,132.93,132.9,6.7719]
[1719281372198,100.0,132.91,132.89,23.7033]
[1719281372592,100.0,132.91,132.87,6.7731]
[1719281372797,100.0,132.89,132.87,6.7733]
[1719281372997,100.0,132.89,132.86,23.7081]
[1719281375596,100.0,132.89,132.87,6.7734]
[1719281376711,100.0,132.89,132.86,23.708]
[1719281378315,100.0,132.87,132.85,6.7745]
[1719281379211,100.0,132.87,132.84,6.7749]
[1719281379596,22.6014,132.91,132.8,23.0636]
[1719281379597,100.0,132.85,132.8,23.0636]
[1719281379803,100.0,132.85,132.82,6.776]
[1719281380016,100.0,132.85,132.8,16.9419]
[1719281380198,100.0,132.83,132.81,6.7765]
[1719281380728,100.0,132.83,132.81,6.7763]
[1719281382718,100.0,132.83,132.81,6.7764]
[1719281383029,100.0,132.83,132.8,23.7188]
[1719281384100,100.0,132.83,132.81,6.7765]
[1719281384298,100.0,132.83,132.82,6.776]
[1719281384596,100.0,132.85,132.82,6.776]
[1719281384801,100.0,132.85,132.8,16.9419]
[1719281385003,100.0,132.85,132.82,6.776]
[1719281385519,100.0,132.83,132.8,23.7189]
[1719281385695,100.0,132.81,132.8,23.7189]
[1719281385901,100.0,132.81,132.79,6.7775]
[1719281387014,100.0,132.84,132.79,6.7775]
[1719281387402,100.0,132.8,132.79,6.7775]
[1719281387916,100.0,132.8,132.77,16.9459]
[1719281388117,100.0,132.82,132.77,16.9459]
[1719281388118,100.0,132.78,132.77,16.9459]
[1719281388511,100.0,132.78,132.75,6.7795]
[1719281388710,100.0,132.78,132.75,6.7794]
[1719281388929,100.0,132.78,132.74,16.9501]
[1719281389430,100.0,132.78,132.75,6.7795]
[1719281389806,100.0,132.78,132.75,6.7796]
[1719281391405,100.0,132.75,132.74,23.7301]
[1719281391607,100.0,132.75,132.74,16.9501]
[1719281391924,100.0,132.75,132.73,6.7806]
[1719281392720,100.0,132.75,132.71,45.5433]
[1719281393024,100.0,132.75,132.74,6.7801]
[1719281393605,100.0,132.75,132.73,23.7315]
[1719281396827,100.0,132.75,132.73,16.951]
[1719281397234,100.0,132.73,132.7,16.955]
[1719281397531,100.0,132.73,132.7,23.7367]
[1719281397708,100.0,132.73,132.71,6.7815]
[1719281397913,100.0,132.73,132.7,16.955]
[1719281398109,100.0,132.73,132.72,6.7811]
[1719281398314,100.0,132.73,132.71,6.7814]
[1719281398510,100.0,132.73,132.7,16.955]
[1719281398716,100.0,132.73,132.71,6.7815]
[1719281399312,100.0,132.71,132.7,16.955]
[1719281400034,100.0,132.71,132.7,23.7372]
[1719281400434,100.0,132.71,132.7,16.955]
[1719281400627,100.0,132.71,132.7,23.7372]
[1719281400936,115.9868,132.75,132.71,6.7815]
[1719281401313,115.9868,132.75,132.7,23.737]
[1719281401517,100.0,132.71,132.67,23.3601]
[1719281402023,100.0,132.71,132.69,6.7822]
[1719281402918,100.0,132.71,132.7,6.7822]
[1719281403528,100.0,132.73,132.69,16.9562]
[1719281403843,106.02269411,132.76,132.71,16.9535]
[1719281403844,100.0,132.76,132.71,16.9535]
[1719281404010,100.0,132.76,132.73,6.7806]
[1719281404454,100.0,132.74,132.71,16.9535]
[1719281405144,100.0,132.74,132.71,23.735]
[1719281405717,100.0,132.71,132.69,6.7826]
[1719281406033,100.0,132.71,132.69,6.7825]
[1719281406234,100.0,132.71,132.68,23.7404]
[1719281407441,100.0,132.71,132.68,23.7405]
[1719281407640,100.0,132.69,132.68,16.9573]
[1719281408014,100.0,132.69,132.68,23.7405]
[1719281409411,100.0,132.69,132.65,32.9964]
[1719281409647,100.0,132.67,132.65,16.9614]
[1719281409938,100.0,132.67,132.65,23.746]
[1719281410711,100.0,132.65,132.62,45.5554]
[1719281410919,100.0,132.65,132.64,6.7852]
[1719281411524,100.0,132.65,132.62,23.7515]
[1719281411827,100.0,132.65,132.63,6.7855]
[1719281412017,100.0,132.65,132.64,6.7852]
[1719281412931,100.0,132.67,132.64,6.7852]
[1719281413137,100.0,132.67,132.64,16.9626]
[1719281413433,100.0,132.67,132.64,23.7478]
[1719281415136,100.0,132.67,132.62,6.7858]
[1719281415137,100.0,132.65,132.62,6.7858]
[1719281415548,100.0,132.65,132.63,6.7857]
[1719281416414,100.0,132.65,132.64,6.7852]
[1719281416846,100.0,132.65,132.63,23.7495]
[1719281417233,100.0,132.65,132.61,6.7863]
[1719281417843,100.0,132.65,132.62,6.7862]
[1719281418035,100.0,132.65,132.63,6.7857]
[1719281418240,100.0,132.65,132.6,61.405]
[1719281418241,100.0,132.65,132.62,6.7862]
[1719281418941,100.0,132.65,132.61,6.7866]
[1719281419142,100.0,132.63,132.6,23.7555]
[1719281419730,100.0,132.61,132.6,16.9683]
[1719281420144,100.0,132.61,132.6,23.7556]
[1719281423346,100.0,132.63,132.6,16.9683]
[1719281423541,100.0,132.67,132.63,6.7856]
[1719281423737,100.0,132.67,132.62,16.9651]
[1719281423924,115.466,132.69,132.64,16.9625]
[1719281424125,100.0,132.69,132.66,6.7842]
[1719281424425,100.0,132.69,132.66,16.9601]
[1719281424743,100.0,132.72,132.69,6.7827]
[1719281425045,100.0,132.72,132.66,16.9601]
[1719281425427,100.0,132.69,132.66,16.9601]
[1719281426432,100.0,132.69,132.66,23.7439]
[1719281426630,100.0,132.69,132.66,16.9601]
[1719281426842,100.0,132.71,132.69,6.7827]
[1719281427626,100.0,132.75,132.7,16.9549]
[1719281427839,100.0,132.78,132.74,6.7801]
[1719281428240,100.0,132.77,132.72,23.7329]
[1719281428448,100.0,132.77,132.72,16.9518]
[1719281428449,100.0,132.74,132.72,16.9518]
[1719281429427,100.0,132.72,132.69,45.5466]
[1719281429738,100.0,132.72,132.7,6.7821]
[1719281430246,100.0,132.72,132.66,16.1752]
[1719281430247,100.0,132.72,132.66,33.1351]
[1719281430455,100.0,132.68,132.66,16.9599]
[1719281430952,100.0,132.68,132.66,23.7437]
[1719281431128,100.0,132.68,132.66,16.9599]
[1719281432446,100.0,132.68,132.67,6.7836]
[1719281432748,100.0,132.68,132.66,16.9599]
[1719281433132,100.0,132.7,132.67,6.7837]
[1719281433346,100.0,132.68,132.66,16.9599]
[1719281433648,100.0,132.68,132.66,23.744]
[1719281433851,100.0,132.68,132.66,16.9599]
[1719281434443,100.0,132.68,132.63,45.5542]
[1719281434751,100.0,132.68,132.65,6.7847]
[1719281436427,100.0,132.68,132.64,6.7852]
[1719281436631,100.0,132.68,132.65,6.7847]
[1719281437837,100.0,132.7,132.66,6.784]
[1719281438039,100.0,132.72,132.68,6.7831]
[1719281438239,100.0,132.72,132.67,16.9586]
[1719281438543,100.0,132.72,132.69,6.7825]
[1719281438743,100.0,132.7,132.67,16.9586]
[1719281439253,100.0,132.68,132.67,16.9586]
[1719281439635,100.0,132.71,132.67,16.9586]
[1719281440058,100.0,132.71,132.68,6.7831]
[1719281440634,100.0,132.71,132.67,23.7422]
[1719281441136,100.0,132.71,132.67,23.2422]
[1719281442035,100.0,132.71,132.68,6.783]
[1719281442631,100.0,132.67,132.66,35.3741]
[1719281442849,100.0,132.67,132.66,28.59]
[1719281443746,100.0,132.67,132.66,6.7842]
[1719281444241,200.0,132.71,132.67,6.7836]
[1719281444660,206.7819,132.71,132.66,16.9602]
[1719281444950,200.0,132.71,132.66,16.9602]
[1719281445157,100.0,132.67,132.64,6.7851]
[1719281445533,100.0,132.67,132.62,6.7861]
[1719281445732,100.0,132.65,132.62,6.7861]
[1719281446547,100.0,132.65,132.63,6.7855]
[1719281447653,100.0,132.67,132.64,6.785]
[1719281448961,100.0,132.67,132.63,6.7857]
[1719281449965,200.0,132.67,132.63,6.7854]
[1719281450141,100.0,132.67,132.62,16.9652]
[1719281450342,100.0,132.67,132.63,6.7854]
[1719281450538,100.0,132.67,132.64,6.7852]
[1719281451260,100.0,132.67,132.63,6.7856]
[1719281451466,100.0,132.67,132.64,6.7852]
[1719281453766,100.0,132.69,132.65,6.7846]
[1719281453967,100.0,132.69,132.66,6.7841]
[1719281454143,107.86389201,132.71,132.66,16.9601]
[1719281454344,100.0,132.71,132.67,6.7836]
[1719281454857,100.0,132.71,132.68,6.7831]
[1719281455151,100.0,132.71,132.67,6.7836]
[1719281457863,100.0,132.71,132.66,23.7442]
[1719281459065,100.0,132.69,132.66,16.9601]
[1719281459264,100.0,132.67,132.65,28.59]